bitfinex-derivatives/quotes_SOLF0:USTF0_20250803
["timestamp","ask_amount","ask_price","bid_price","bid_amount"]
[1754249503497,9.5826,162.53,162.52,3.44]
[1754249503702,3.43,162.53,162.48,6.1912781]
[1754249503902,3.43,162.53,162.49,3.46]
[1754249504304,3.43,162.55,162.49,3.46]
[1754249504907,6.1912781,162.56,162.49,3.46]
[1754249505116,6.1912781,162.54,162.47,3.46]
[1754249505314,3.43,162.53,162.47,3.46]
[1754249505716,6.1912781,162.52,162.43,131.885344]
[1754249505908,6.1912781,162.48,162.43,3.46]
[1754249506216,6.1558,162.45,162.43,3.46]
[1754249506417,3.43,162.44,162.43,3.46]
[1754249507514,9.5858,162.45,162.43,3.46]
[1754249508017,3.43,162.49,162.43,3.46]
[1754249508315,9.5842,162.49,162.45,9.6153]
[1754249508507,3.43,162.49,162.46,3.46]
[1754249508709,3.43,162.51,162.46,3.46]
[1754249509016,116.03,162.52,162.46,9.6512781]
[1754249509217,3.43,162.5,162.47,3.46]
[1754249509413,3.43,162.51,162.47,3.46]
[1754249509715,3.43,162.5,162.47,3.46]
[1754249509917,3.43,162.5,162.48,3.46]
[1754249510116,3.43,162.5,162.49,3.46]
[1754249511120,118.753,162.52,162.49,3.46]
[1754249511413,3.43,162.51,162.49,3.46]
[1754249512318,3.43,162.5,162.49,3.46]
[1754249512816,3.43,162.54,162.49,3.46]
[1754249513020,3.43,162.53,162.51,3.46]
[1754249513515,424.15004012,162.59,162.52,3.46]
[1754249513516,3.43,162.56,162.52,3.46]
[1754249513718,3.43,162.57,162.52,3.46]
[1754249514916,3.43,162.55,162.53,3.46]
[1754249515114,3.43,162.55,162.54,3.46]
[1754249515719,9.5818,162.55,162.54,3.46]
[1754249516724,6.1522,162.54,162.5,12.3446781]
[1754249517024,9.5822,162.54,162.53,3.46]
[1754249517412,9.5822,162.54,162.51,3.46]
[1754249517620,3.43,162.53,162.52,3.46]
[1754249519629,9.5826,162.53,162.52,3.46]
[1754249521230,3.43,162.53,162.52,3.46]
[1754249522830,6.1523,162.54,162.52,3.46]
[1754249523031,9.5823,162.54,162.52,3.46]
[1754249523236,6.1523,162.54,162.52,3.46]
[1754249523637,6.1526,162.53,162.52,3.46]
[1754249523928,3.43,162.54,162.52,3.46]
[1754249524333,3.43,162.53,162.51,6.1912781]
[1754249524632,112.6,162.58,162.47,6.1912781]
[1754249524633,3.43,162.55,162.47,6.1912781]
[1754249524827,3.43,162.51,162.48,3.46]
[1754249525829,9.583,162.52,162.48,3.46]
[1754249526029,3.43,162.51,162.48,3.46]
[1754249526235,3.43,162.51,162.48,9.6143]
[1754249526534,3.43,162.51,162.49,3.46]
[1754249526932,3.43,162.51,162.5,3.46]
[1754249528036,9.5833,162.51,162.5,3.46]
[1754249528632,3.43,162.52,162.5,3.46]
[1754249528828,3.43,162.5,162.49,6.1912781]
[1754249529335,3.43,162.5,162.49,9.6512781]
[1754249529935,9.5837,162.5,162.49,3.46]
[1754249530144,3.43,162.49,162.48,3.46]
[1754249534241,3.43,162.49,162.44,129.15776727]
[1754249534443,3.43,162.49,162.45,3.27]
[1754249534941,3.17,162.48,162.46,3.27]
[1754249537638,3.17,162.48,162.46,6.1552]
[1754249537838,3.17,162.48,162.47,3.27]
[1754249539340,6.153,162.52,162.47,3.27]
[1754249539546,3.17,162.49,162.47,3.27]
[1754249539948,3.17,162.5,162.45,12.3467781]
[1754249540249,3.17,162.5,162.48,3.27]
[1754249540748,6.1537,162.5,162.48,3.27]
[1754249540947,3.17,162.49,162.47,3.27]
[1754249541346,3.17,162.49,162.45,12.3467781]
[1754249541550,3.17,162.49,162.48,3.27]
[1754249543943,3.17,162.49,162.47,3.27]
[1754249544346,3.17,162.49,162.45,12.3467781]
[1754249544545,3.17,162.49,162.46,3.27]
[1754249545752,6.1545,162.48,162.46,3.27]
[1754249545946,3.17,162.47,162.46,3.27]
[1754249546146,3.17,162.49,162.46,3.27]
[1754249547552,3.17,162.49,162.46,9.4251]
[1754249547751,3.17,162.49,162.47,3.27]
[1754249548354,6.1537,162.5,162.47,3.27]
[1754249548656,3.17,162.48,162.47,3.27]
[1754249553958,9.3244,162.48,162.47,3.27]
[1754249554154,3.17,162.48,162.45,6.1912781]
[1754249554355,3.17,162.48,162.45,3.27]
[1754249554752,6.1552,162.46,162.45,3.27]
[1754249554958,3.17,162.5,162.42,3.27]
[1754249555356,3.17,162.45,162.42,3.27]
[1754249555656,3.17,162.44,162.42,3.27]
[1754249556159,6.1555,162.46,162.42,3.27]
[1754249556160,3.17,162.45,162.43,3.27]
[1754249556759,3.17,162.45,162.43,9.4612781]
[1754249556960,6.1912781,162.5,162.41,9.4612781]
[1754249557160,3.17,162.49,162.41,6.1912781]
[1754249557361,3.17,162.49,162.42,3.27]
[1754249557559,3.17,162.43,162.42,3.27]
[1754249558760,9.3263,162.43,162.42,3.27]
[1754249559460,3.17,162.41,162.4,3.27]
[1754249561969,9.3271,162.41,162.4,3.27]
[1754249562167,3.17,162.4,162.39,3.27]
[1754249562362,3.17,162.4,162.38,6.1912781]
[1754249562558,3.17,162.4,162.38,3.27]
[1754249563266,3.17,162.39,162.36,3.27]
[1754249563468,3.17,162.41,162.34,3.27]
[1754249563967,6.1589,162.37,162.33,112.58]
[1754249564163,3.52,162.36,162.33,115.76]
[1754249564368,3.52,162.36,162.33,3.18]
[1754249565171,9.6793,162.36,162.33,3.18]
[1754249565465,3.52,162.34,162.33,3.18]
[1754249565858,6.91336008,162.45,162.3,6.1912781]
[1754249565859,6.1912781,162.38,162.3,6.1912781]
[1754249566064,3.52,162.37,162.3,3.18]
[1754249566274,6.1594,162.35,162.3,3.18]
[1754249566567,3.52,162.34,162.3,3.18]
[1754249567164,3.52,162.33,162.31,3.18]
[1754249567467,3.52,162.32,162.29,118.7416]
[1754249567665,6.1597,162.35,162.3,6.1611]
[1754249567869,3.52,162.34,162.31,3.18]
[1754249568370,3.52,162.38,162.32,6.1912781]
[1754249568568,3.52,162.38,162.33,3.18]
[1754249568976,3.52,162.37,162.34,3.18]
[1754249569271,3.52,162.36,162.34,3.18]
[1754249571372,6.1583,162.38,162.34,3.18]
[1754249571678,3.52,162.42,162.35,3.18]
[1754249571974,3.52,162.37,162.35,3.18]
[1754249572771,9.6786,162.37,162.35,3.18]
[1754249572972,3.52,162.36,162.34,6.1912781]
[1754249573570,3.52,162.36,162.35,3.18]
[1754249573877,9.679,162.36,162.35,3.18]
[1754249574374,3.52,162.36,162.35,3.18]
[1754249574872,3.52,162.36,162.32,12.3516781]
[1754249575176,3.52,162.35,162.32,3.18]
[1754249575480,3.52,162.34,162.31,3.18]
[1754249575668,3.52,162.34,162.32,3.18]
[1754249576368,3.52,162.35,162.32,3.18]
[1754249576568,3.52,162.37,162.33,3.18]
[1754249576768,3.52,162.36,162.33,3.18]
[1754249577067,9.6793,162.36,162.33,3.18]
[1754249577275,3.52,162.35,162.33,3.18]
[1754249577577,6.1912781,162.41,162.33,3.18]
[1754249577773,3.52,162.34,162.33,3.18]
[1754249578577,9.6796,162.35,162.33,3.18]
[1754249579675,9.6797,162.34,162.33,3.18]
[1754249580279,3.52,162.34,162.32,6.1912781]
[1754249580579,3.52,162.36,162.29,3.18]
[1754249580968,3.52,162.3,162.29,3.18]
[1754249581475,9.6812,162.31,162.29,3.18]
[1754249583987,3.52,162.31,162.29,3.18]
[1754249585678,3.52,162.3,162.27,12.3533781]
[1754249586285,3.52,162.3,162.28,3.18]
[1754249590689,3.52,162.3,162.29,3.18]
[1754249593196,3.52,162.36,162.3,3.18]
[1754249593890,3.24,162.33,162.27,9.5612781]
[1754249594090,3.24,162.33,162.27,3.37]
[1754249594889,6.1616,162.3,162.27,3.37]
[1754249595189,3.24,162.29,162.22,3.37]
[1754249595695,3.24,162.27,162.23,3.37]
[1754249596189,3.24,162.27,162.21,6.1912781]
[1754249596394,3.24,162.27,162.24,3.37]
[1754249596592,3.24,162.27,162.21,6.1912781]
[1754249596902,3.24,162.27,162.22,9.534]
[1754249597096,3.24,162.27,162.23,3.37]
[1754249597796,9.4025,162.27,162.24,3.37]
[1754249597991,3.24,162.26,162.24,3.37]
[1754249598397,3.24,162.3,162.25,3.37]
[1754249598586,3.24,162.32,162.27,6.1912781]
[1754249598787,3.24,162.32,162.28,3.37]
[1754249599187,3.24,162.33,162.28,3.37]
[1754249600095,3.24,162.32,162.28,3.37]
[1754249600290,3.24,162.32,162.27,3.37]
[1754249600799,6.161,162.31,162.25,6.1629]
[1754249601094,3.24,162.29,162.28,3.37]
[1754249601400,3.24,162.34,162.29,3.37]
[1754249601597,3.24,162.34,162.27,3.37]
[1754249602398,6.1608,162.32,162.27,3.37]
[1754249602597,3.24,162.31,162.27,3.37]
[1754249604096,3.24,162.3,162.28,3.37]
[1754249604801,6.1608,162.32,162.28,3.37]
[1754249605001,3.24,162.31,162.28,3.37]
[1754249605599,3.24,162.3,162.28,3.37]
[1754249605896,3.24,162.3,162.27,6.1624]
[1754249606097,3.24,162.3,162.29,3.37]
[1754249607800,3.24,162.32,162.29,3.37]
[1754249608103,6.1603,162.33,162.29,3.37]
[1754249608104,3.24,162.33,162.29,3.37]
[1754249609304,3.24,162.35,162.3,6.1912781]
[1754249609505,3.24,162.34,162.31,3.37]
[1754249610400,3.24,162.38,162.31,3.37]
[1754249610900,3.24,162.38,162.31,9.5612781]
[1754249611104,3.24,162.38,162.32,3.37]
[1754249611700,6.1594,162.35,162.32,3.37]
[1754249611899,3.24,162.34,162.32,3.37]
[1754249612207,3.24,162.33,162.31,6.1912781]
[1754249612698,3.24,162.33,162.32,3.37]
[1754249615803,6.1912781,162.36,162.26,8.49314859]
[1754249616106,3.24,162.33,162.27,3.37]
[1754249617206,6.1612,162.31,162.27,3.37]
[1754249617396,3.24,162.3,162.27,3.37]
[1754249618098,3.24,162.3,162.28,3.37]
[1754249620413,3.24,162.31,162.27,3.37]
[1754249621019,3.24,162.3,162.27,3.37]
[1754249622216,3.24,162.3,162.27,6.1624]
[1754249622408,3.24,162.3,162.28,3.37]
[1754249625818,3.37,162.32,162.28,12.3532781]
[1754249626014,7.85476218,162.31,162.29,3.47]
[1754249626216,3.37,162.31,162.29,3.47]
[1754249626418,3.37,162.36,162.3,6.1912781]
[1754249626619,3.37,162.34,162.31,3.47]
[1754249626815,4.48432289,162.33,162.31,3.47]
[1754249627118,3.37,162.33,162.32,3.47]
[1754249627320,7.8542381,162.33,162.32,3.47]
[1754249627513,4.4842381,162.33,162.32,9.6305]
[1754249627710,3.37,162.37,162.33,3.47]
[1754249627908,3.37,162.39,162.36,3.47]
[1754249628112,3.37,162.39,162.36,6.1586]
[1754249628321,3.37,162.39,162.38,3.47]
[1754249628514,7.8497339,162.39,162.38,3.47]
[1754249629213,3.37,162.39,162.38,3.47]
[1754249629416,3.37,162.39,162.35,6.1912781]
[1754249629615,3.37,162.39,162.36,3.47]
[1754249629819,3.37,162.39,162.37,3.47]
[1754249631126,3.37,162.38,162.36,3.47]
[1754249632016,3.37,162.43,162.34,9.6612781]
[1754249632222,3.37,162.41,162.34,6.1912781]
[1754249632413,3.37,162.41,162.35,3.47]
[1754249633220,6.1583,162.38,162.35,3.47]
[1754249633417,3.37,162.37,162.35,3.47]
[1754249633615,6.1912781,162.42,162.36,3.47]
[1754249633818,3.37,162.37,162.34,12.3510781]
[1754249634225,3.37,162.37,162.34,6.1912781]
[1754249634423,3.37,162.37,162.35,3.47]
[1754249635024,3.37,162.37,162.36,3.47]
[1754249637222,6.1574,162.41,162.36,3.47]
[1754249637421,3.37,162.4,162.36,3.47]
[1754249638222,3.37,162.4,162.36,9.6289]
[1754249638521,3.37,162.4,162.38,3.47]
[1754249640524,6.1568,162.42,162.37,6.1586]
[1754249640727,413.94,162.44,162.38,3.47]
[1754249640915,3.37,162.43,162.39,3.47]
[1754249641120,6.1574,162.41,162.37,3.47]
[1754249641519,3.37,162.43,162.37,6.1912781]
[1754249641721,3.37,162.43,162.4,3.47]
[1754249641927,3.37,162.43,162.41,3.47]
[1754249642428,3.37,162.42,162.41,3.47]
[1754249643025,3.37,162.42,162.37,6.1912781]
[1754249643222,3.37,162.42,162.39,3.47]
[1754249644429,3.37,162.4,162.39,3.47]
[1754249646028,6.1569,162.42,162.39,3.47]
[1754249646224,3.37,162.42,162.39,3.47]
[1754249647120,3.37,162.47,162.41,3.47]
[1754249647527,3.37,162.47,162.42,3.47]
[1754249647723,6.1555,162.46,162.42,3.47]
[1754249647925,3.37,162.45,162.42,3.47]
[1754249648720,3.37,162.44,162.42,3.47]
[1754249648926,3.37,162.43,162.42,3.47]
[1754249649126,3.37,162.43,162.4,3.47]
[1754249649323,3.37,162.43,162.39,6.1912781]
[1754249649731,3.37,162.43,162.41,3.47]
[1754249650233,6.1562,162.44,162.41,3.47]
[1754249650431,3.37,162.43,162.41,3.47]
[1754249650629,3.37,162.42,162.39,12.3488781]
[1754249651027,3.37,162.42,162.4,3.47]
[1754249651935,3.37,162.42,162.39,3.47]
[1754249652832,3.37,162.42,162.4,3.47]
[1754249653037,3.37,162.41,162.38,3.47]
[1754249653331,3.37,162.41,162.39,3.47]
[1754249653729,6.1574,162.41,162.39,3.47]
[1754249653930,3.3,162.4,162.39,3.47]
[1754249658137,3.3,162.45,162.39,3.47]
[1754249658331,3.3,162.45,162.4,6.1912781]
[1754249658537,135.32106514,162.5,162.41,3.42]
[1754249658737,9.456,162.44,162.41,3.42]
[1754249658934,3.3,162.44,162.41,3.42]
[1754249659434,3.3,162.49,162.41,3.42]
[1754249660636,6.1555,162.46,162.42,6.1566]
[1754249660838,3.3,162.44,162.43,3.42]
[1754249663742,9.456,162.44,162.43,3.42]
[1754249669545,3.3,162.44,162.43,3.42]
[1754249674348,9.456,162.44,162.43,3.42]
[1754249677053,3.3,162.43,162.37,6.1912781]
[1754249677248,3.3,162.43,162.38,3.42]
[1754249677645,3.3,162.42,162.35,5.12461664]
[1754249677849,3.3,162.42,162.41,3.42]
[1754249678054,7.77247642,162.42,162.41,3.42]
[1754249679948,13.92917642,162.42,162.41,3.42]
[1754249680257,3.3,162.41,162.39,3.42]
[1754249680551,3.3,162.41,162.34,5.12461664]
[1754249680552,3.3,162.4,162.37,3.42]
[1754249680952,3.3,162.46,162.39,3.42]
[1754249681152,3.3,162.44,162.42,3.42]
[1754249681356,4.47503984,162.43,162.42,3.42]
[1754249682045,3.3,162.44,162.42,3.42]
[1754249683255,3.3,162.43,162.42,3.42]
[1754249684354,3.23,162.44,162.42,3.42]
[1754249684548,3.23,162.44,162.43,3.42]
[1754249684748,3.23,162.45,162.43,3.42]
[1754249685358,248.56314712,162.5,162.43,3.42]
[1754249685659,3.23,162.47,162.45,3.42]
[1754249685859,3.23,162.47,162.46,3.42]
[1754249686064,3.23,162.49,162.46,3.42]
[1754249686258,3.23,162.48,162.46,3.42]
[1754249686455,3.23,162.48,162.47,3.42]
[1754249686652,3.23,162.49,162.47,3.42]
[1754249687249,132.35978704,162.5,162.48,3.42]
[1754249689461,3.23,162.49,162.48,3.42]
[1754249696567,112.52,162.55,162.49,3.42]
[1754249696773,3.23,162.54,162.49,3.42]
[1754249697070,3.23,162.52,162.48,6.1912781]
[1754249697268,3.23,162.52,162.49,3.42]
[1754249697873,112.52,162.55,162.41,6.93019352]
[1754249697874,112.52,162.55,162.51,3.42]
[1754249698173,3.23,162.53,162.51,3.42]
[1754249699572,3.23,162.52,162.51,3.42]
[1754249700868,3.23,162.52,162.48,6.1912781]
[1754249701067,3.23,162.52,162.47,3.42]
[1754249701272,6.1537,162.51,162.48,3.42]
[1754249701472,3.23,162.5,162.48,3.42]
[1754249702873,3.23,162.54,162.48,3.42]
[1754249703075,6.91336008,162.58,162.5,3.42]
[1754249703076,112.48,162.58,162.5,3.42]
[1754249703269,3.23,162.57,162.5,3.42]
[1754249703573,6.1521,162.55,162.51,6.153]
[1754249703772,3.23,162.54,162.52,3.42]
[1754249703966,112.48,162.58,162.51,6.1912781]
[1754249704170,3.23,162.52,162.51,6.1912781]
[1754249704367,3.23,162.52,162.49,6.1912781]
[1754249704675,3.23,162.52,162.5,3.42]
[1754249704876,3.23,162.52,162.5,9.5734]
[1754249705077,3.23,162.52,162.51,3.42]
[1754249711182,112.48,162.58,162.52,3.42]
[1754249711183,3.23,162.57,162.52,3.42]
[1754249711783,6.1517,162.56,162.52,3.42]
[1754249712183,3.23,162.55,162.45,3.42]
[1754249712387,3.23,162.55,162.52,6.1912781]
[1754249712686,3.23,162.55,162.53,3.42]
[1754249712883,3.23,162.55,162.54,3.42]
[1754249713387,9.3818,162.55,162.54,3.42]
[1754249713685,3.35,162.54,162.53,3.48]
[1754249714089,3.35,162.53,162.52,3.48]
[1754249714290,3.35,162.53,162.51,3.48]
[1754249714591,3.35,162.52,162.5,12.3448781]
[1754249715196,3.35,162.52,162.51,3.48]
[1754249723290,3.35,162.52,162.51,9.6333]
[1754249723490,3.35,162.53,162.51,6.1533]
[1754249723702,3.35,162.53,162.52,3.48]
[1754249725199,3.35,162.56,162.52,9.6712781]
[1754249725400,3.35,162.56,162.54,6.1912781]
[1754249725600,3.35,162.56,162.55,3.48]
[1754249726895,3.35,162.56,162.55,9.6318]
[1754249727095,3.35,162.56,162.55,3.48]
[1754249727600,3.35,162.56,162.55,9.6318]
[1754249727801,3.35,162.56,162.55,3.48]
[1754249728902,3.35,162.56,162.54,6.1912781]
[1754249729104,3.35,162.56,162.54,9.6712781]
[1754249730206,9.5015,162.56,162.54,9.6712781]
[1754249730400,3.35,162.55,162.54,9.6712781]
[1754249731098,3.35,162.55,162.54,15.8234781]
[1754249731303,3.35,162.55,162.54,9.6322]
[1754249731500,3.35,162.55,162.54,3.48]
[1754249733609,3.35,162.55,162.54,9.6322]
[1754249736806,3.35,162.55,162.54,3.48]
[1754249738507,3.35,162.55,162.54,9.6322]
[1754249739015,3.35,162.55,162.54,3.48]
[1754249740009,3.35,162.55,162.54,9.6322]
[1754249744616,3.35,162.55,162.54,3.48]
[1754249748621,3.35,162.55,162.54,7.43451949]
[1754249750221,3.35,162.55,162.54,13.58671949]
[1754249752923,6.1503,162.59,162.55,6.1516]
[1754249753118,3.37,162.61,162.58,3.95451949]
[1754249753318,3.37,162.61,162.58,7.36451949]
[1754249753520,3.37,162.61,162.59,3.41]
[1754249754120,3.37,162.61,162.51,5.14153801]
[1754249754320,3.37,162.6,162.59,3.95451949]
[1754249755414,3.37,162.6,162.59,7.36451949]
[1754249755718,3.37,162.6,162.59,3.41]
[1754249755923,3.37,162.6,162.59,7.36451949]
[1754249756723,3.37,162.6,162.59,3.41]
[1754249756923,3.37,162.6,162.59,7.36451949]
[1754249757826,3.37,162.6,162.58,3.41]
[1754249758027,3.37,162.6,162.58,7.36451949]
[1754249758524,3.37,162.6,162.59,3.95451949]
[1754249758824,9.5199,162.6,162.59,3.41]
[1754249759024,3.37,162.6,162.59,3.41]
[1754249759322,3.37,162.6,162.59,7.36451949]
[1754249759524,3.37,162.66,162.6,3.41]
[1754249759820,3.37,162.66,162.63,3.95451949]
[1754249760021,3.37,162.65,162.63,3.95451949]
[1754249760218,3.95451949,162.64,162.59,3.41]
[1754249760419,3.95451949,162.64,162.57,3.95451949]
[1754249760420,6.1503,162.6,162.57,3.95451949]
[1754249760625,3.37,162.63,162.57,3.41]
[1754249761930,3.37,162.62,162.56,3.41]
[1754249762118,9.5472758,162.62,162.56,3.41]
[1754249762421,3.37,162.57,162.54,12.3293758]
[1754249762634,6.91336008,162.63,162.54,6.1772758]
[1754249762923,6.1772758,162.64,162.57,3.41]
[1754249762924,9.5198,162.61,162.57,3.41]
[1754249763323,9.5198,162.61,162.58,3.41]
[1754249763324,3.37,162.6,162.58,3.41]
[1754249764023,6.1298,162.61,162.58,3.41]
[1754249764223,3.37,162.6,162.58,3.41]
[1754249764425,3.37,162.6,162.59,3.41]
[1754249764622,3.37,162.6,162.57,3.41]
[1754249765229,6.1772758,162.63,162.57,3.41]
[1754249765230,3.37,162.58,162.57,3.41]
[1754249767534,9.5207,162.58,162.57,3.41]
[1754249767827,13.09063588,162.63,162.54,12.3293758]
[1754249767828,3.37,162.61,162.55,3.41]
[1754249768227,3.37,162.6,162.53,6.1525]
[1754249768433,3.37,162.6,162.54,3.41]
[1754249768933,3.37,162.56,162.51,6.1772758]
[1754249769232,10.37004012,162.64,162.49,3.41]
[1754249769233,6.1772758,162.55,162.49,3.41]
[1754249769529,3.37,162.52,162.45,3.41]
[1754249769727,3.37,162.52,162.45,9.5872758]
[1754249769921,3.37,162.52,162.49,6.1538]
[1754249770119,3.37,162.52,162.5,3.41]
[1754249770326,3.37,162.55,162.48,3.41]
[1754249771429,6.1523,162.54,162.49,6.154]
[1754249771629,3.37,162.55,162.48,3.41]
[1754249772026,3.37,162.52,162.48,3.41]
[1754249773028,6.91336008,162.57,162.49,6.1772758]
[1754249773232,3.37,162.56,162.52,3.41]
[1754249773429,3.37,162.56,162.5,12.3306758]
[1754249773626,3.37,162.56,162.46,6.1772758]
[1754249773627,3.37,162.52,162.46,6.1772758]
[1754249773822,3.37,162.52,162.48,3.2]
[1754249774027,3.37,162.52,162.48,6.1542]
[1754249774222,3.39,162.56,162.5,6.1772758]
[1754249774427,3.39,162.56,162.52,3.2]
[1754249774630,3.39,162.56,162.49,3.2]
[1754249775723,6.91336008,162.58,162.48,6.1772758]
[1754249776039,3.39,162.56,162.54,3.2]
[1754249776229,6.1511,162.57,162.54,3.2]
[1754249776429,3.39,162.56,162.55,3.2]
[1754249776631,3.39,162.61,162.55,3.2]
[1754249777439,3.39,162.58,162.54,6.1521]
[1754249777735,3.39,162.58,162.55,3.2]
[1754249777937,9.5409,162.58,162.55,3.2]
[1754249778138,3.39,162.57,162.55,3.2]
[1754249778335,6.91336008,162.62,162.56,3.2]
[1754249778632,3.39,162.61,162.57,3.2]
[1754249778840,3.39,162.6,162.54,3.2]
[1754249779049,3.39,162.57,162.54,3.2]
[1754249779539,3.39,162.56,162.49,3.2]
[1754249779839,3.39,162.54,162.49,3.2]
[1754249780035,3.39,162.54,162.48,3.2]
[1754249780227,3.39,162.54,162.49,3.2]
[1754249780432,3.39,162.57,162.49,3.2]
[1754249780644,6.1772758,162.56,162.49,3.2]
[1754249780840,3.39,162.55,162.49,3.2]
[1754249781040,6.1772758,162.54,162.45,3.2]
[1754249781335,6.1539,162.5,162.45,3.2]
[1754249781543,3.39,162.48,162.45,3.2]
[1754249782237,6.1772758,162.52,162.43,3.2]
[1754249782446,3.39,162.47,162.4,82.91237505]
[1754249782735,3.39,162.45,162.4,3.2]
[1754249782935,3.39,162.41,162.4,3.2]
[1754249783130,6.1772758,162.46,162.4,3.2]
[1754249783335,3.39,162.45,162.4,3.2]
[1754249783736,3.39,162.45,162.38,8.34153801]
[1754249783737,6.1772758,162.44,162.38,8.34153801]
[1754249784039,3.39,162.39,162.38,3.2]
[1754249784429,3.39,162.43,162.38,3.2]
[1754249784635,3.39,162.46,162.4,3.2]
[1754249785144,6.1772758,162.48,162.44,3.2]
[1754249785341,3.39,162.45,162.44,3.2]
[1754249785638,3.39,162.46,162.41,6.1567]
[1754249785835,3.39,162.46,162.43,3.2]
[1754249786036,3.39,162.45,162.44,3.2]
[1754249786941,6.1772758,162.48,162.4,3.2]
[1754249787137,3.39,162.44,162.4,3.2]
[1754249787537,3.39,162.44,162.4,6.1572]
[1754249787738,3.39,162.47,162.39,3.2]
[1754249787935,6.1575,162.4,162.36,6.1589]
[1754249788139,6.1772758,162.44,162.37,3.2]
[1754249788341,3.39,162.43,162.37,3.2]
[1754249788844,6.1575,162.4,162.37,3.2]
[1754249789040,3.39,162.38,162.37,3.2]
[1754249789843,3.39,162.43,162.37,3.2]
[1754249790044,3.39,162.42,162.39,3.2]
[1754249790245,3.39,162.41,162.4,3.2]
[1754249790945,3.39,162.41,162.31,85.93519358]
[1754249790946,3.39,162.45,162.35,9.90957167]
[1754249791141,3.39,162.45,162.42,3.2]
[1754249791342,6.1563,162.44,162.42,3.2]
[1754249791550,3.39,162.43,162.42,3.2]
[1754249791945,9.5463,162.43,162.42,3.2]
[1754249792148,9.5463,162.43,162.36,3.2]
[1754249792149,3.39,162.43,162.36,3.2]
[1754249792647,6.1571,162.41,162.36,6.1586]
[1754249792943,3.39,162.39,162.38,3.2]
[1754249794849,6.1582,162.39,162.34,6.1597]
[1754249795051,3.39,162.37,162.31,85.93519358]
[1754249795251,3.39,162.37,162.32,3.2]
[1754249795448,3.39,162.36,162.33,6.1601]
[1754249795751,3.39,162.36,162.35,3.2]
[1754249798348,6.1589,162.37,162.33,3.2]
[1754249798651,3.39,162.35,162.34,3.2]
[1754249801251,3.39,162.36,162.35,3.2]